[Event "1st Serbian League 2022"]
[Site "Vrnjacka Banja"]
[Date "2022.09.29"]
[Round "10.18"]
[White "Radlovacki, Jovan"]
[Black "Mijailovic, Zoran"]
[Result "1-0"]
[ECO "B40"]
[WhiteElo "2287"]
[BlackElo "2345"]
[Annotator "TA"]
[PlyCount "143"]
[EventDate "2022.09.20"]
[EventType "team-tourn"]
[EventCountry "SRB"]
[SourceTitle "playchess.com"]
[Source "ChessBase"]
[SourceQuality "1"]
[TimeControl "40/5400+30:1800+30"]

{[%evp 9,143,0,0,0,5,0,-5,-23,-4,0,0,-8,-10,-12,-8,-2,0,0,29,30,80,22,29,22,28,12,18,26,31,0,0,0,0,0,0,-21,4,7,8,0,6,8,31,21,25,18,23,0,79,9,24,14,22,22,131,122,213,75,262,109,123,120,114,108,100,104,200,201,179,124,139,91,90,90,94,90,90,91,100,95,94,83,189,172,185,120,327,311,323,259,300,306,321,317,316,322,316,255,400,195,166,95,95,95,95,95,95,52,375,95,1625,1594,2191,1589,5081,5081,2220,3486,2050,1806,1170,1113,29975,29975,29974,8,29976,29977,29978,29979,29981,29982,29982,29982,29982,29983]} 1. e4 {[%emt 0:03:00]} c5 {[%emt 0:00:11]} 2. Nf3 {[%emt 0:00:28]} e6 {[%emt 0:00:10]} 3. c3 {[%emt 0:01:16]} Nf6 {[%emt 0:01:56][%cal Bg8f6,Bf6d7,Bd7c5,Bc5e4][%mdl 32]} 4. Bd3 {[%emt 0:00:47]} d5 {[%emt 0:04:59]} 5. e5 {[%emt 0:01:24]} Nfd7 {[%emt 0:00:24]} 6. Bc2 {[%emt 0:01:10] B40: Sicilian: 2...e6, Unusual lines.} c4 {[%emt 0:00:57]} 7. d4 {[%emt 0:02:55]} cxd3 $1 {[%emt 0:00:38]} 8. Bxd3 {[%emt 0:04:48] The position is equal.} Nc6 {[%emt 0:01:21]} 9. Bf4 {[%emt 0:01:56]} Be7 {[%emt 0:04:23]} 10. Qe2 {[%emt 0:12:35]} Nc5 {[%emt 0:10:10] [#]} 11. Bc2 $146 {[%emt 0:10:55]} ({Predecessor:} 11. O-O Nxd3 12. Qxd3 g5 13. Bg3 h5 14. h3 Bd7 15. Na3 Qb6 16. Rad1 O-O-O 17. Nb5 {0-1 (24) Cubas,J (2425)-Barbosa,E (2461) Barretos 2015}) 11... d4 {[%emt 0:01:22]} 12. Qd2 {[%emt 0:12:05][%cal Rc3d4]} d3 {[%emt 0:05:21]} 13. Bd1 {[%emt 0:03:34]} Qd5 {[%emt 0:11:11][%cal Og7g5]} 14. O-O {[%emt 0:04:38]} g5 {[%emt 0:04:47]} (14... a5 $11) 15. Bxg5 {[%emt 0:05:55]} ({White should try} 15. c4 $16 Qxc4 16. Bxg5) 15... Ne4 $11 {[%emt 0:00:31]} (15... Nxe5 16. Bxe7 Kxe7 17. Re1 Nxf3+ 18. Bxf3 $16) 16. Qf4 {[%emt 0:00:40]} Nxg5 {[%emt 0:01:43]} 17. Nxg5 {[%emt 0:00:57]} Nxe5 {[%emt 0:03:11] Strongly threatening ...Bxg5.} 18. Nd2 {[%emt 0:06:27] Black must now prevent Bb3.} Rg8 {[%emt 0:06:25]} 19. Ngf3 {[%emt 0:00:47] Dancing on a razor blade. Pair of Knights!} (19. Bb3 $5 {[%cal Rb3d5]} Bxg5 20. Qxg5 Nf3+ 21. Nxf3 Rxg5 22. Bxd5 Rxd5 23. Rad1 $11) 19... Ng6 {[%emt 0:03:01]} 20. Qe3 {[%emt 0:06:52]} Bd7 {[%emt 0:04:40]} 21. Bb3 {[%emt 0:00:41]} Qh5 {[%emt 0:00:44]} 22. Ne4 {[%emt 0:00:19]} (22. Qxd3 $2 Nf4 23. Qe4 Qh3 $1 $19) 22... Nh4 {[%emt 0:01:11]} 23. Nxh4 {[%emt 0:02:02]} Qxh4 {[%emt 0:00:05]} 24. Ng3 {[%emt 0:01:37]} Bc6 {[%emt 0:02:36]} 25. Rad1 {[%emt 0:02:52]} O-O-O {[%emt 0:06:38]} 26. Rxd3 {[%emt 0:00:43]} Rxd3 {[%emt 0:00:46]} 27. Qxd3 {[%emt 0:00:03]} Bc5 {[%emt 0:00:16]} 28. Bc4 {[%emt 0:03:45]} h5 {[%emt 0:12:31]} (28... Qf4 $11 29. Qxh7 Rxg3 30. hxg3 Qxc4) 29. Bb5 {[%emt 0:01:12]} (29. b4 $1 $16 {[%cal Rb4c5]} Rd8 30. Qe2) 29... Bxb5 $1 {[%emt 0:00:24]} 30. Qxb5 {[%emt 0:00:07]} Qg5 {[%emt 0:00:06][%cal Oc5f2] ...Bxf2+! is the strong threat.} 31. Qc4 {[%emt 0:01:10] Threatens to win with b4.} b5 {[%emt 0:01:53]} (31... h4 $11 {remains equal.} 32. b4 hxg3 33. hxg3 (33. Qxc5+ Qxc5 34. bxc5 gxh2+ 35. Kxh2 Rg5 $15) 33... b5 34. Qxc5+ Qxc5 35. bxc5 Rg5) 32. Qe4 $36 {[%emt 0:00:12][%mdl 2048] White has strong initiative.} Kb8 {[%emt 0:04:53]} (32... h4 $16) 33. Qf3 {[%emt 0:00:34]} (33. Rd1 $1 $18 {[%cal Rd1d7] is more deadly. aiming for Rd7.} Rc8 34. Qe2 (34. Rd7 Rc7 $16)) 33... Bb6 $2 {[%emt 0:01:25]} (33... Qg4 $16) 34. Ne4 {[%emt 0:02:30]} ({And not} 34. Qxf7 h4 35. Qxe6 hxg3 36. hxg3 Rh8 $15) ({Not} 34. Qxh5 Qxh5 35. Nxh5 Rd8 $16) (34. Nxh5 $18 {is the precise move to win.} Qg4 35. Qxg4 Rxg4 36. Nf6) 34... Qg4 {[%emt 0:03:10]} 35. Qxg4 {[%emt 0:00:23]} hxg4 {[%emt 0:00:03][%mdl 4096] Endgame KRB-KRN} 36. Rd1 {[%emt 0:00:26]} f5 {[%emt 0:02:08]} 37. Nf6 {[%emt 0:00:40]} Rd8 {[%emt 0:00:13]} (37... Rg6 $16) 38. Rxd8+ $1 $18 {[%emt 0:00:09]} Bxd8 {[%emt 0:00:01] KB-KN} 39. Nd7+ {[%emt 0:07:26]} (39. Ne8 $18) 39... Kc8 $16 {[%emt 0:00:16]} 40. Nc5 {[%emt 0:00:00]} (40. Nf8 $142 $1 {[%cal Rf8e6]}) 40... e5 {[%emt 0:00:04]} 41. Kf1 {[%emt 0:24:07]} Bf6 {[%emt 0:31:49]} 42. f3 {[%emt 0:03:31]} gxf3 {[%emt 0:00:33]} 43. gxf3 {[%emt 0:00:09]} Kc7 {[%emt 0:00:12]} 44. Ke2 {[%emt 0:00:16]} Kd6 {[%emt 0:00:00]} 45. Nd3 {[%emt 0:04:57]} a5 {[%emt 0:00:00] Against Nb4} (45... e4 $16) 46. Ne1 $1 $18 {[%emt 0:00:00]} Bg5 {[%emt 0:00:00]} 47. Nc2 {[%emt 0:00:00]} (47. Ng2 $18) 47... Bc1 $2 {[%emt 0:00:00]} (47... Kd5 $16) 48. b3 {[%emt 0:00:00]} Bg5 {[%emt 0:00:00]} 49. Kd3 {[%emt 0:00:00]} Kd5 {[%emt 0:05:42]} 50. Ne3+ {[%emt 0:00:00]} Ke6 {[%emt 0:00:00]} 51. c4 {[%emt 0:00:00]} bxc4+ {[%emt 0:00:00]} 52. Nxc4 {[%emt 0:00:00]} Bd8 {[%emt 0:01:30]} 53. Ne3 {[%emt 0:00:00]} Bg5 {[%emt 0:00:00]} (53... Bf6 $142 54. Ng2 Kd5 55. Ne3+ Ke6) 54. Nf1 {[%emt 0:04:30]} (54. Ng2 $142 {And now h4 would win.} Kd5 55. h4 e4+ 56. Ke2 exf3+ 57. Kxf3) 54... Kd5 {[%emt 0:01:00]} 55. Ng3 {[%emt 0:00:00] Prevents e4+.} ({White should play} 55. Ke2 $1 $18) 55... Bf4 $16 {[%emt 0:00:00]} 56. Nxf5 {[%emt 0:00:00]} Bxh2 {[%emt 0:01:00]} 57. Ne3+ {[%emt 0:00:00]} Kc5 {[%emt 0:00:00][%cal Oa5a4]} 58. a3 {[%emt 0:00:00]} Kb5 $2 {[%emt 0:00:00][%mdl 8192]} (58... Bf4 $14) 59. Nc4 $2 {[%emt 0:00:00]} (59. Ke4 $1 $18 {and the rest is easy.}) 59... a4 $2 {[%emt 0:00:00][%mdl 8192]} (59... Bf4 $16 60. Kc3 (60. Ke4 a4 $11) 60... Bg3 61. Nd6+ Kc6) 60. b4 $1 $18 {[%emt 0:00:00][%cal Bb3b4,Bb4b5][%mdl 32] Hoping for Nd6+.} Bg3 {[%emt 0:00:00]} 61. Nd6+ {[%emt 0:00:00]} Kc6 {[%emt 0:00:00]} 62. Ne4 {[%emt 0:00:00]} Bf4 {[%emt 0:00:00]} 63. Kc4 {[%emt 0:00:00]} Bc1 {[%emt 0:00:00]} 64. b5+ $1 {[%emt 0:00:00]} Kb6 {[%emt 0:00:00]} 65. Kb4 {[%emt 0:04:17]} Bxa3+ {[%emt 0:00:00]} 66. Kxa3 {[%emt 0:00:03]} Kxb5 {[%emt 0:00:00] [#] KN-KPP} 67. Ng5 $2 {[%emt 0:00:05]} (67. Nf2 $1 {mates} Kc5 68. Kxa4 Kd4 69. Ng4 Kc5 70. Nxe5 Kd5 71. Nd3 Kd4 {[#]} 72. f4 $1) 67... Kc4 $2 {[%emt 0:00:00][%mdl 8192]} (67... Kc5 $11) 68. Kxa4 {[%emt 0:00:07] White mates.} Kd4 {[%emt 0:01:18]} 69. Kb4 {[%emt 0:02:58]} Ke3 {[%emt 0:00:34]} 70. Kc4 {[%emt 0:00:00]} Kf4 {[%emt 0:00:08] [#]} 71. Kd5 $1 {[%emt 0:00:00]} Kf5 {[%emt 0:00:15]} 72. Nh3 {[%emt 0:00:00] Weighted Error Value: White=0.30/Black=0.32} 1-0

[Event "1st Serbian League 2022"]
[Site "Vrnjacka Banja"]
[Date "2022.09.29"]
[Round "10.19"]
[White "Ter-Sahakyan, Samvel"]
[Black "Predojevic, Borki"]
[Result "1/2-1/2"]
[ECO "B77"]
[WhiteElo "2630"]
[BlackElo "2584"]
[Annotator "TA"]
[PlyCount "39"]
[EventDate "2022.09.20"]
[EventType "team-tourn"]
[EventCountry "SRB"]
[SourceTitle "playchess.com"]
[Source "ChessBase"]
[SourceQuality "1"]
[TimeControl "40/5400+30:1800+30"]

{[%evp 28,39,27,31,23,0,0,7,4,10,8,0,7,15]} 1. e4 {[%emt 0:00:04]} c5 {[%emt 0:00:06]} 2. Nf3 {[%emt 0:00:07]} Nc6 {[%emt 0:00:06]} 3. d4 {[%emt 0:01:09]} cxd4 {[%emt 0:00:29]} 4. Nxd4 {[%emt 0:00:05]} g6 {[%emt 0:00:19]} 5. Nc3 {[%emt 0:02:53]} Bg7 {[%emt 0:00:15]} 6. Be3 {[%emt 0:00:05]} Nf6 {[%emt 0:00:05]} 7. Bc4 {[%emt 0:00:53]} O-O {[%emt 0:00:10]} 8. Bb3 {[%emt 0:00:22]} d6 {[%emt 0:00:09]} 9. f3 {[%emt 0:06:11]} Qa5 {[%emt 0:00:16]} 10. Qd2 {[%emt 0:06:47]} Nxd4 {[%emt 0:00:45]} 11. Bxd4 {[%emt 0:00:05]} Be6 {[%emt 0:00:05]} 12. O-O-O {[%emt 0:08:27]} b5 {[%emt 0:01:07][%cal Bb7b5,Bb5b4][%mdl 32]} 13. Kb1 {[%emt 0:05:29]} b4 {[%emt 0:00:14]} 14. Nd5 {[%emt 0:01:21]} Bxd5 {[%emt 0:00:08]} 15. exd5 {[%emt 0:00:23][%cal Oa2a3]} Qb5 $1 {[%emt 0:00:07] B77: Sicilian Dragon: Yugoslav Attack, 9 Bc4 sidelines.} 16. Rhe1 {[%emt 0:06:02]} a5 $1 {[%emt 0:01:13] [#] ...a4 is the strong threat. The position is equal.} 17. Qd3 {[%emt 0:08:50]} ({Not} 17. Rxe7 $2 a4 18. Qd3 (18. c4 $2 bxc3 19. Qxc3 axb3 $19) 18... Qxd3 19. Rxd3 axb3 20. cxb3 Rfb8 $19) 17... Qxd3 {[%emt 0:00:48]} 18. cxd3 {[%emt 0:04:29]} a4 {[%emt 0:00:09]} 19. Bc4 {[%emt 0:02:50] [#]} Rab8 $146 {[%emt 0:00:06]} ({Predecessor:} 19... Rfe8 20. Bb5 Reb8 21. Bc6 Ra5 22. Rxe7 Nxd5 23. Ra7 Bxd4 24. Rxa5 Ne3 25. Rc1 a3 26. bxa3 bxa3+ {1-0 (48) Moranda,W (2601)-Klekowski,M (2509) Poland 2018}) 20. Rxe7 {[%emt 0:05:19] An even fight not without its subleties.  Weighted Error Value: White=0.09 (flawless) /Black=0.01 (flawless)} 1/2-1/2

[Event "1st Serbian League 2022"]
[Site "Vrnjacka Banja"]
[Date "2022.09.29"]
[Round "10.20"]
[White "Bogosavljevic, Boban"]
[Black "Stojanovic, Mihajlo"]
[Result "1/2-1/2"]
[ECO "E04"]
[WhiteElo "2533"]
[BlackElo "2494"]
[Annotator "TA"]
[PlyCount "156"]
[EventDate "2022.09.20"]
[EventType "team-tourn"]
[EventCountry "SRB"]
[SourceTitle "playchess.com"]
[Source "ChessBase"]
[SourceQuality "1"]
[TimeControl "40/5400+30:1800+30"]

{[%evp 23,156,27,17,22,33,8,12,11,33,33,33,36,34,37,38,24,33,32,24,30,31,28,16,23,28,15,11,17,24,0,8,16,15,5,6,7,5,0,0,0,0,0,0,0,0,0,0,0,0,0,5,0,0,0,0,0,0,0,4,4,6,4,3,0,7,4,4,4,9,4,4,0,0,0,0,0,0,0,8,8,8,0,0,0,0,0,0,0,0,0,0,0,0,-58,-58,-59,-58,-59,-20,-20,-20,-20,-20,-20,-20,-20,-20,-20,-20,-20,-20,-28,-28,-28,-28,-28,-20,-20,-20,-28,-28,-28,-28,-28,-28,-28,-28,-28,-28,-28,0,-28,0,-28,0]} 1. Nf3 {[%emt 0:01:08]} d5 {[%emt 0:00:11]} 2. g3 {[%emt 0:00:14]} Nf6 {[%emt 0:01:48]} 3. Bg2 {[%emt 1:30:38]} c5 {[%emt 0:00:32]} 4. O-O {[%emt 0:00:00]} Nc6 {[%emt 0:00:14]} 5. d4 {[%emt 0:00:00]} e6 {[%emt 0:00:10]} 6. c4 {[%emt 0:00:00]} dxc4 {[%emt 0:00:07]} 7. dxc5 {[%emt 0:00:00]} Qxd1 {[%emt 0:00:10]} 8. Rxd1 {[%emt 0:00:00]} Bxc5 {[%emt 0:00:08]} 9. Nbd2 {[%emt 0:00:00]} c3 {[%emt 0:00:07]} 10. bxc3 {[%emt 0:00:00]} O-O {[%emt 0:00:12]} 11. Nb3 {[%emt 0:00:00]} Be7 {[%emt 0:01:14]} 12. c4 {[%emt 0:00:00]} Bd7 {[%emt 0:00:24]} 13. Bb2 {[%emt 0:00:00] E04: Open Catalan: 5 Nf3.} Rfc8 {[%emt 0:00:37]} 14. Rac1 {[%emt 0:00:00]} Be8 {[%emt 0:01:43]} 15. Nfd4 {[%emt 0:00:00][%cal Bf3d4,Bd4b5,Bb5d6][%mdl 32] [#] The position is equal.} Kf8 $146 {[%emt 0:22:23]} ({Predecessor:} 15... a5 16. Nxc6 Bxc6 17. Bxc6 Rxc6 18. Nd4 Rcc8 19. Nb5 a4 20. Bxf6 Bxf6 21. Rd7 b6 22. Rb7 Rab8 23. Ra7 Ra8 24. Rb7 Rab8 25. Ra7 Ra8 26. Rb7 {½-½ (26) So,W (2776)-Anand,V (2751) Warsaw 2022}) 16. Nb5 {[%emt 0:00:00]} Rd8 {[%emt 0:01:08]} 17. c5 {[%emt 0:00:00]} Rxd1+ {[%emt 0:28:06]} 18. Rxd1 {[%emt 0:00:00]} b6 {[%emt 0:01:56]} 19. Nd6 {[%emt 0:00:00]} Rd8 {[%emt 0:00:41]} 20. Rc1 {[%emt 0:00:00]} Nb4 {[%emt 0:01:10]} 21. Nxe8 {[%emt 0:00:00]} (21. cxb6 {is interesting.} Bxd6 22. bxa7 Nfd5 23. e4) 21... Nxe8 {[%emt 0:01:47]} 22. a3 {[%emt 0:00:00]} Na6 {[%emt 0:00:47][%cal Ra6c5]} 23. cxb6 {[%emt 0:00:00]} axb6 {[%emt 0:00:06]} 24. a4 {[%emt 0:00:02]} Bf6 {[%emt 0:03:11] Inhibits Bd4.} 25. Ba3+ {[%emt 0:01:42] This bishop pair is nice.} Be7 $1 {[%emt 0:00:10]} 26. Bb2 {[%emt 0:00:01]} Bf6 {[%emt 0:00:07] Inhibits Bd4.} 27. Bxf6 {[%emt 0:00:18]} Nxf6 {[%emt 0:00:47]} 28. e3 {[%emt 0:04:14]} Rd3 {[%emt 0:26:39]} 29. Rb1 {[%emt 0:00:37] [#] Threatens to win with Bf1.} Rc3 {[%emt 0:00:13]} 30. Nd4 {[%emt 0:03:20]} Nc5 {[%emt 0:00:17]} 31. Rxb6 {[%emt 0:01:34]} Rc1+ {[%emt 0:05:18]} 32. Bf1 {[%emt 0:00:04] Black must now prevent a5.} Nxa4 {[%emt 0:00:08]} 33. Rb8+ {[%emt 0:00:07]} Ke7 {[%emt 0:00:28]} 34. Rb7+ {[%emt 0:01:17]} Kf8 {[%emt 0:00:51]} 35. Rb8+ {[%emt 0:01:18]} Ke7 {[%emt 0:00:02]} 36. Ra8 {[%emt 0:01:20]} Nb6 {[%emt 0:02:35]} 37. Ra7+ {[%emt 0:00:14]} Nfd7 {[%emt 0:01:04]} 38. Kg2 {[%emt 0:00:02]} Nc8 {[%emt 0:00:22]} 39. Ra6 {[%emt 0:00:09]} Nd6 {[%emt 0:01:19]} 40. Be2 {[%emt 0:01:15]} Rc7 {[%emt 0:00:42]} 41. h4 {[%emt 0:02:43]} Nb8 {[%emt 0:09:22]} 42. Ra8 {[%emt 0:04:42]} Nc6 {[%emt 0:00:25]} 43. Nf3 {[%emt 0:07:32]} Rc8 {[%emt 0:00:26]} 44. Ra6 {[%emt 0:00:19]} Rc7 {[%emt 0:00:26]} 45. g4 {[%emt 0:00:33]} h6 {[%emt 0:00:10]} 46. Bd1 {[%emt 0:01:08]} Ne4 {[%emt 0:04:23]} 47. Ba4 {[%emt 0:01:26]} Nb4 {[%emt 0:01:59]} 48. Ra8 {[%emt 0:00:58]} Nd3 {[%emt 0:02:56]} 49. g5 {[%emt 0:05:18]} hxg5 {[%emt 0:00:13]} 50. hxg5 {[%emt 0:00:02] [#] aiming for Re8+.} f6 {[%emt 0:07:11]} 51. Nd4 {[%emt 0:07:50] And now g6 would win.} Ndc5 {[%emt 0:01:48]} 52. gxf6+ {[%emt 0:02:07]} gxf6 {[%emt 0:00:15]} 53. Rh8 {[%emt 0:00:24] Rh7+ is the strong threat.} Rb7 {[%emt 0:03:48]} (53... Nxa4 $2 54. Rh7+ Kd6 55. Nb5+ Kc6 56. Nxc7 $18) 54. Rh7+ {[%emt 0:02:15]} Kd6 {[%emt 0:01:39]} 55. Nb5+ {[%emt 0:00:02]} Kc6 $1 {[%emt 0:02:06]} 56. Nd4+ {[%emt 0:00:01]} Kd6 {[%emt 0:00:06]} 57. Nb5+ {[%emt 0:00:04]} Kc6 $1 {[%emt 0:00:11]} 58. Na7+ {[%emt 0:01:02]} (58. Rxb7 $11 Kxb7 59. Bc2) 58... Kb6 $15 {[%emt 0:00:29]} 59. Nc8+ {[%emt 0:00:05]} Ka6 {[%emt 0:00:08]} 60. Rh4 {[%emt 0:00:53]} Rg7+ {[%emt 0:01:22]} (60... Rb2 $5 {[%cal Rb2f2]} 61. Bc6 Nxf2 $17) 61. Kf1 $1 {[%emt 0:00:01]} Kb7 {[%emt 0:00:57]} 62. Bc2 {[%emt 0:00:59]} f5 {[%emt 0:00:23]} 63. Bxe4+ {[%emt 0:00:34]} Nxe4 {[%emt 0:00:11]} 64. Rxe4 {[%emt 0:00:38]} fxe4 $11 {[%emt 0:00:03][%mdl 4096] Endgame KR-KN} 65. Nd6+ {[%emt 0:00:05]} Kc6 {[%emt 0:00:06]} 66. Nxe4 {[%emt 0:00:02]} Kd5 {[%emt 0:00:35]} 67. Ng3 {[%emt 0:00:08]} e5 {[%emt 0:00:17]} 68. Ke2 {[%emt 0:00:57]} e4 {[%emt 0:00:17]} 69. Nh5 {[%emt 0:00:26]} Rf7 {[%emt 0:00:14]} 70. Nf4+ {[%emt 0:00:07]} Ke5 {[%emt 0:00:07]} 71. Ng6+ {[%emt 0:00:50]} Kf5 {[%emt 0:00:10]} 72. Nf4 {[%emt 0:00:02]} Ra7 {[%emt 0:00:17]} 73. Kf1 {[%emt 0:01:05]} Rg7 {[%emt 0:00:09]} 74. Ne2 {[%emt 0:00:58]} Ke5 {[%emt 0:00:49]} 75. Ng3 {[%emt 0:00:15]} Rg8 {[%emt 0:00:12]} 76. Kg2 {[%emt 0:00:21]} Rg7 {[%emt 0:00:08]} 77. Kf1 {[%emt 0:00:03]} Rg8 {[%emt 0:00:04]} 78. Kg2 $1 {[%emt 0:00:03]} Rg7 {[%emt 0:00:07] Weighted Error Value: White=0.05 (flawless) /Black=0.02 (flawless)} 1/2-1/2

[Event "1st Serbian League 2022"]
[Site "Vrnjacka Banja"]
[Date "2022.09.29"]
[Round "10.21"]
[White "Pezelj, Novak"]
[Black "Vuckovic, Bojan"]
[Result "1/2-1/2"]
[ECO "D85"]
[WhiteElo "2496"]
[BlackElo "2559"]
[Annotator "TA"]
[PlyCount "78"]
[EventDate "2022.09.20"]
[EventType "team-tourn"]
[EventCountry "SRB"]
[SourceTitle "playchess.com"]
[Source "ChessBase"]
[SourceQuality "1"]
[TimeControl "40/5400+30:1800+30"]

{[%evp 12,78,23,0,0,0,0,2,1,-19,22,0,31,29,35,15,21,-91,-83,-98,-81,-128,-109,-319,-144,-275,-265,-406,-408,-410,-399,-320,-297,-285,-224,-403,-404,-547,-250,-2367,-252,-258,-253,-253,-25,-217,0,-216,0,0,0,0,0,0,0,0,0,0,0,0,0,0,0,0,0,0,0,0,0]} 1. d4 {[%emt 0:00:21]} Nf6 {[%emt 0:00:31]} 2. c4 {[%emt 0:00:35]} g6 {[%emt 0:01:01]} 3. Nc3 {[%emt 0:00:32]} d5 {[%emt 0:00:21]} 4. cxd5 {[%emt 0:01:00]} Nxd5 {[%emt 0:00:09]} 5. e4 {[%emt 0:00:36]} Nxc3 {[%emt 0:00:17]} 6. bxc3 {[%emt 0:00:11]} Bg7 {[%emt 0:00:11]} 7. Ba3 {[%emt 0:00:49] Recently 7.Nf3 got a lot of attention.} Nd7 {[%emt 0:05:29][%cal Oc7c5] D85: Exchange Grünfeld: Unusual White 7th moves and lines with 7 Nf3.} 8. Nf3 {[%emt 0:00:34]} c5 {[%emt 0:01:06]} 9. Qb3 {[%emt 0:00:21]} O-O {[%emt 0:02:46]} 10. Bd3 {[%emt 0:01:02]} b6 $5 {[%emt 0:14:16][%mdl 4] An interesting side line.} 11. Rd1 {[%emt 0:26:10]} e6 {[%emt 0:03:39] [#]} 12. h4 $146 {[%emt 0:01:06][%cal Bh2h4,Bh4h5][%mdl 32]} ({Predecessor:} 12. O-O Qc7 13. e5 Bb7 14. Ng5 Rfc8 15. Qb1 Rab8 16. h4 b5 17. h5 b4 18. hxg6 bxa3 19. gxf7+ {1-0 (35) Dolmatov,S (2550)-Bagirov,V (2500) Frunze 1983}) 12... Qc7 {[%emt 0:08:23]} 13. h5 {[%emt 0:05:06]} Bb7 {[%emt 0:01:51]} 14. Ng5 {[%emt 0:07:07]} (14. Kf1 $11) 14... h6 $1 $17 {[%emt 0:10:27]} 15. Nf3 {[%emt 0:19:52]} g5 {[%emt 0:01:37]} 16. e5 {[%emt 0:06:49]} ({Better is} 16. Bb1) 16... Rfd8 {[%emt 0:07:59]} 17. Bb1 $2 {[%emt 0:02:15] [#]} (17. O-O $17) 17... g4 {[%emt 0:10:48]} (17... Nxe5 $1 $19 {[%mdl 512] is more deadly.} 18. Nxe5 Bxe5) 18. Nh4 {[%emt 0:03:01]} (18. Nh2 $17 Nxe5 19. O-O cxd4 20. cxd4) 18... Nxe5 $1 $19 {[%emt 0:00:44][%cal Og4g3]} 19. O-O {[%emt 0:02:47]} (19. Qc2 $142 Nd7 20. Qh7+ Kf8 21. O-O) 19... Qe7 {[%emt 0:03:50]} 20. Ng6 {[%emt 0:02:36]} Nf3+ {[%emt 0:08:30]} (20... fxg6 $2 21. dxe5 gxh5 22. Qc2 Bxe5 23. Rde1 $17) 21. gxf3 {[%emt 0:00:05]} fxg6 {[%emt 0:00:05]} 22. fxg4 {[%emt 0:02:55]} gxh5 {[%emt 0:02:41]} 23. f3 $2 {[%emt 0:04:16] [#]} (23. dxc5 {is a better defense.} Bf3 24. Rxd8+ Rxd8 25. Re1) 23... hxg4 $1 {[%emt 0:08:42]} (23... Qd6 24. Rd2 $17) 24. fxg4 {[%emt 0:00:16]} Qh4 {[%emt 0:00:12]} (24... Qd6 $142 {[%cal Rd6g3]} 25. Rd3 Rf8) 25. Qxe6+ {[%emt 0:00:24]} Kh8 {[%emt 0:00:06][%cal Rh4g3]} 26. d5 {[%emt 0:00:45]} Qg3+ {[%emt 0:01:10]} (26... Bxc3 27. Rf7 Qg3+ 28. Kh1 Qh3+ 29. Kg1 Qg3+ 30. Kh1 Qh3+ 31. Kg1 Qg3+ $11) 27. Kh1 {[%emt 0:00:02]} Qh3+ {[%emt 0:00:11]} (27... Qxc3 28. Qe4 Qh3+ 29. Kg1 Qg3+ 30. Kh1 Qh3+ 31. Kg1 Qg3+ 32. Kh1 Qh3+ $11) 28. Kg1 {[%emt 0:00:01]} Qg3+ {[%emt 0:00:13]} (28... Qxc3 29. Qf5 Bd4+ 30. Rxd4 Qg3+ 31. Kh1 Qh3+ 32. Kg1 Qg3+ 33. Kh1 Qh3+ 34. Kg1 Qg3+ $11) (28... Bxc3 29. Rf7 Qg3+ 30. Kh1 Qh3+ 31. Kg1 Qg3+ 32. Kh1 Qh3+ 33. Kg1 $11) 29. Kh1 {[%emt 0:00:01] [#]} Rf8 $2 {[%emt 0:01:30]} (29... Qxc3 30. Qe4 Qh3+ 31. Kg1 Qg3+ 32. Kh1 Qh3+ 33. Kg1 Qg3+ 34. Kh1 Qh3+ $11) ({Black should play} 29... Bc8 $1 $19 30. Qe4 Qh3+ 31. Kg1 Qxg4+ 32. Qxg4 (32. Kh2 $2 Qh3+ 33. Kg1 Bf5 $19) 32... Bxg4) 30. Qe4 $11 {[%emt 0:01:26][%csl Gb1][%cal Re4h7] The position is equal.} Qh3+ {[%emt 0:00:42]} 31. Kg1 {[%emt 0:00:02][%csl Gb1][%cal Re4h7]} Qg3+ {[%emt 0:00:06]} 32. Kh1 {[%emt 0:00:01][%csl Gb1][%cal Re4h7]} Qh3+ {[%emt 0:05:20]} 33. Kg1 {[%emt 0:00:01][%csl Gb1][%cal Re4h7]} Qg3+ {[%emt 0:00:19]} 34. Kh1 {[%emt 0:00:01][%csl Gb1][%cal Re4h7]} Bxd5 {[%emt 0:01:32]} 35. Qxd5 {[%emt 0:00:10] Really sharp!} (35. Rxf8+ {gets mated.} Rxf8 36. Qxd5 Qh4+ 37. Kg1 Qxg4+ 38. Kh1 Rf2 39. Qd8+ Bf8) 35... Qh3+ {[%emt 0:00:04]} 36. Kg1 {[%emt 0:00:03] Hoping for Qg2.} Qe3+ {[%emt 0:00:15]} 37. Kh1 {[%emt 0:01:30] Black must now prevent Qg2.} ({Wrong is} 37. Kh2 $2 Be5+ 38. Qxe5+ Qxe5+ $19) 37... Qh3+ {[%emt 0:00:07]} 38. Kg1 {[%emt 0:00:01] Threatens to win with Qe4.} Qe3+ {[%emt 0:00:06]} 39. Kh1 {[%emt 0:00:02] And now Qg2 would win.} ({Don't blunder} 39. Kh2 $2 Be5+ 40. Qxe5+ Qxe5+ $19) 39... Qh3+ {[%emt 0:01:07] Whites escaped into a draw.  Weighted Error Value: White=0.52/Black=0.37} 1/2-1/2

[Event "1st Serbian League 2022"]
[Site "Vrnjacka Banja"]
[Date "2022.09.29"]
[Round "10.22"]
[White "Roganovic, Milos"]
[Black "Ratkovic, Milovan"]
[Result "1/2-1/2"]
[ECO "B11"]
[WhiteElo "2487"]
[BlackElo "2411"]
[Annotator "TA"]
[PlyCount "34"]
[EventDate "2022.09.20"]
[EventType "team-tourn"]
[EventCountry "SRB"]
[SourceTitle "playchess.com"]
[Source "ChessBase"]
[SourceQuality "1"]
[TimeControl "40/5400+30:1800+30"]

{[%evp 13,34,0,38,0,0,0,31,39,48,30,41,35,43,37,42,4,22,0,0,-19,0,-54,-56]} 1. e4 {[%emt 0:00:03]} c6 {[%emt 0:02:09]} 2. Nc3 {[%emt 0:00:53]} d5 {[%emt 0:00:06]} 3. Nf3 {[%emt 0:00:05]} Bg4 {[%emt 0:00:47]} 4. h3 {[%emt 0:00:11]} Bxf3 {[%emt 0:00:18]} 5. Qxf3 {[%emt 0:00:15]} e6 {[%emt 0:00:05]} 6. d4 {[%emt 0:00:42]} Nf6 {[%emt 0:00:47]} 7. Bd3 {[%emt 0:02:29]} Be7 {[%emt 0:06:25]} 8. O-O {[%emt 0:09:47] B11: Caro-Kann: Two Knights Variation.} (8. e5 $5 {[%cal Re5f6]} Nfd7 9. O-O $14) 8... dxe4 {[%emt 0:00:43]} 9. Nxe4 {[%emt 0:00:19]} Nxe4 {[%emt 0:03:47]} 10. Qxe4 {[%emt 0:02:38] White is slightly better.} Nd7 {[%emt 0:00:09]} 11. Be3 {[%emt 0:20:51] [#]} g6 $146 {[%emt 0:03:08]} ({Predecessor:} 11... Nf6 12. Qf3 O-O 13. Rfd1 a5 14. c4 a4 15. Rac1 Qa5 16. Bd2 Qb6 {½-½ (42) Frederic,C (2242)-Degraeve,J (2527) Vaujany 2021}) 12. c4 {[%emt 0:02:14]} O-O {[%emt 0:00:59][%cal Oe6e5]} 13. Rad1 {[%emt 0:01:15]} Re8 {[%emt 0:00:52]} 14. f4 {[%emt 0:07:24]} Qc7 {[%emt 0:11:17]} 15. Qf3 {[%emt 0:02:35]} Rad8 {[%emt 0:13:57]} 16. g4 {[%emt 0:08:58]} Bf6 {[%emt 0:01:55]} 17. Kh1 {[%emt 0:05:13]} (17. b3 $11) 17... c5 $1 {[%emt 0:04:13] Weighted Error Value: White=0.24 (precise) /Black=0.15 (very precise)} 1/2-1/2